fUSD/lending_fUSD_20251030
["ID","MTS","AMOUNT","RATE_DAILY","PERIOD"]
[392702521,1761834416444,-703.85416081,0.0003836,120]
[392702522,1761834416495,-703.85416081,0.0003836,120]
[392702523,1761834416546,-703.85,0.0003836,120]
[392702524,1761834416595,-1642.32637522,0.0003836,120]
[392702525,1761834416644,-1642.32637522,0.0003836,120]
[392702526,1761834416693,-1642.32637522,0.0003836,120]
[392702527,1761834416741,-1642.32637522,0.0003836,120]
[392702528,1761834416793,-1642.32637522,0.0003836,120]
[392702529,1761834416842,-1642.32637522,0.0003836,120]
[392702530,1761834416894,-1642.32637522,0.0003836,120]
[392702531,1761834416946,-1642.32637522,0.0003836,120]
[392702532,1761834416997,-1642.32637522,0.0003836,120]
[392702533,1761834417054,-1642.32637522,0.0003836,120]
[392702534,1761834417104,-1642.32637522,0.0003836,120]
[392702535,1761834417155,-1642.32637522,0.0003836,120]
[392702536,1761834417205,-1642.32637522,0.0003836,120]
[392702537,1761834417252,-1642.32637522,0.0003836,120]
[392702538,1761834417303,-1642.32637522,0.0003836,120]
[392702539,1761834417355,-1642.32637522,0.0003836,120]
[392702540,1761834417402,-1642.32637522,0.0003836,120]
[392702541,1761834417450,-1642.32637522,0.0003836,120]
[392702542,1761834417503,-1642.32637522,0.0003836,120]
[392702543,1761834417552,-1642.32,0.0003836,120]
[392702544,1761834417603,-846.02260696,0.0003836,120]
[392702545,1761834417652,-846.02260696,0.0003836,120]
[392702546,1761834417701,-846.02260696,0.0003836,120]
[392702547,1761834418016,-846.02260696,0.0003836,120]
[392702548,1761834418068,-846.02260696,0.0003836,120]
[392702549,1761834418121,-846.02260696,0.0003836,120]
[392702550,1761834418174,-846.02260696,0.0003836,120]
[392702551,1761834418228,-846.02260696,0.0003836,120]
[392702552,1761834418278,-846.02260696,0.0003836,120]
[392702553,1761834418328,-846.02260696,0.0003836,120]
[392702554,1761834418377,-846.02260696,0.0003836,120]
[392702555,1761834418425,-846.02260696,0.0003836,120]
[392702556,1761834418472,-846.02260696,0.0003836,120]
[392702557,1761834418520,-846.02260696,0.0003836,120]
[392702558,1761834418571,-846.02260696,0.0003836,120]
[392702559,1761834418623,-846.02260696,0.0003836,120]
[392702560,1761834418671,-846.02260696,0.0003836,120]
[392702561,1761834418719,-846.02260696,0.0003836,120]
[392702562,1761834418766,-846.02260696,0.0003836,120]
[392702563,1761834418810,-846.02,0.0003836,120]
[392702564,1761834418859,-1974.05274958,0.0003836,120]
[392702565,1761834418908,-1974.05274958,0.0003836,120]
[392702566,1761834418955,-1974.05274958,0.0003836,120]
[392702567,1761834419011,-1974.05274958,0.0003836,120]
[392702568,1761834419068,-1974.05274958,0.0003836,120]
[392702569,1761834419121,-1974.05274958,0.0003836,120]
[392702570,1761834419173,-1974.05274958,0.0003836,120]
[392702571,1761834419226,-1974.05274958,0.0003836,120]
[392702572,1761834419276,-1974.05274958,0.0003836,120]
[392702573,1761834419327,-1974.05274958,0.0003836,120]
[392702574,1761834419377,-1974.05274958,0.0003836,120]
[392702575,1761834419429,-1974.05274958,0.0003836,120]
[392702576,1761834419480,-1974.05274958,0.0003836,120]
[392702577,1761834419535,-1974.05274958,0.0003836,120]
[392702578,1761834419583,-1974.05274958,0.0003836,120]
[392702579,1761834419631,-1974.05274958,0.0003836,120]
[392702580,1761834419685,-1974.05274958,0.0003836,120]
[392702581,1761834419735,-1974.05274958,0.0003836,120]
[392702582,1761834419785,-1974.05274958,0.0003836,120]
[392702583,1761834419852,-1974.05,0.0003836,120]
[392702584,1761834419907,-150.04,0.00038369,120]
[392702585,1761834419964,-150.04,0.00038469,120]
[392702586,1761834420018,-150.04,0.00038569,120]
[392702587,1761834420073,-150.0,0.00038609,120]
[392702588,1761834420128,-150.04,0.00038669,120]
[392702589,1761834420187,-150.1855528,0.00038769,120]
[392702590,1761834420243,-2925.64891209,0.000388,120]
[392702591,1761834420314,-151.09909514,0.0003884,50]
[392702592,1761834420368,-1925.3529,0.00038888,30]
[392702593,1761834420418,-355.01063865,0.000389,120]
[392702594,1761834420469,-1938.73229152,0.00039,120]
[392702595,1761834420520,-165.16152856,0.00039,120]
[392702596,1761834420572,-1000.0,0.00039,30]
[392702597,1761834420623,-150.0,0.00039,120]
[392702598,1761834420672,-15400.0,0.00039,60]
[392702599,1761834420721,-615.21816,0.00039,120]
[392702600,1761834420771,-150.0,0.000395,120]
[392702601,1761834420820,-81086.0,0.000395,120]
[392702602,1761834420872,-290.24696648,0.000395,120]
[392702603,1761834420925,-220.20613177,0.000395,120]
[392702604,1761834420973,-976.61885034,0.000395,120]
[392702605,1761834421023,-170.47008197,0.000395,120]
[392702606,1761834421073,-560.58655257,0.000395,120]
[392702607,1761834421126,-4509.08464272,0.000395,120]
[392702608,1761834421178,-612.05632983,0.000395,120]
[392702609,1761834421229,-416.27629524,0.000395,60]
[392702610,1761834421278,-2335.5,0.00039519,120]
[392702611,1761834421328,-1480.96680986,0.0003985,60]
[392702612,1761834421378,-1500.0,0.000399,120]
[392702613,1761834421429,-445.0,0.00039986,90]
[392702614,1761834421478,-268.554355,0.00039999,120]
[392702615,1761834421530,-477.12749073,0.0004,30]
[392702616,1761834421583,-374.87881995,0.0004,30]
[392702617,1761834421634,-382.28022358,0.0004,120]
[392702618,1761834421682,-1938.4562202,0.0004,120]
[392702619,1761834421731,-718.49246167,0.0004,30]
[392702620,1761834421780,-204.98654309,0.0004,30]
[392702621,1761834421829,-915.4467919,0.0004,30]
[392702622,1761834421881,-520.57134035,0.0004,120]
[392702623,1761834421931,-456.308258,0.0004,120]
[392702624,1761834421982,-201.04045135,0.0004,30]
[392702625,1761834422031,-1372.9888045,0.0004,120]
[392702626,1761834422081,-278.87691767,0.0004,30]
[392702627,1761834422130,-2020.61950323,0.0004,120]
[392702628,1761834422178,-1529.2951698,0.0004,120]
[392702629,1761834422227,-50000.0,0.0004,35]
[392702630,1761834422275,-210.66,0.0004,30]
[392702631,1761834422322,-515.0,0.0004,30]
[392702632,1761834422371,-750.0,0.0004,30]
[392702633,1761834422424,-293.4449,0.0004,120]
[392702634,1761834422474,-538.16104758,0.0004,120]
[392702635,1761834422531,-300.0,0.0004,120]
[392702636,1761834422587,-2598.63289856,0.0004,120]
[392702637,1761834422641,-885.43784986,0.0004,120]
[392702638,1761834422694,-1166.20544038,0.0004,60]
[392702639,1761834422745,-1000.0,0.0004,120]
[392702640,1761834422801,-1000.0,0.0004,30]
[392702641,1761834422854,-150.0,0.0004,120]
[392702642,1761834422909,-271055.59600973,0.0004,120]
[392702643,1761834422960,-150.0,0.0004,120]
[392702644,1761834423009,-1816.5012224,0.0004,120]
[392702645,1761834423058,-300.0,0.0004,60]
[392702646,1761834423109,-477.01541854,0.0004,120]
[392702647,1761834423159,-200.0,0.0004,120]
[392702648,1761834423212,-450.25013326,0.0004,120]
[392702649,1761834423263,-9726.53849063,0.0004,120]
[392702650,1761834423311,-772.15066646,0.0004,30]
[392702651,1761834423576,-1166.88773209,0.0004,120]
[392702652,1761834423629,-809.49375511,0.0004,120]
[392702653,1761834423682,-2026.24715386,0.0004,30]
[392702654,1761834423732,-162.51336644,0.0004,120]
[392702655,1761834423791,-477.13749083,0.0004,30]
[392702656,1761834423844,-62245.51800984,0.0004,120]
[392702657,1761834423896,-1457.95,0.0004,120]
[392702658,1761834423948,-690.11,0.0004,120]
[392702659,1761834423999,-15000.0,0.0004,120]
[392702660,1761834424050,-22500.0,0.0004,120]
[392702661,1761834424102,-3107.4,0.0004,120]
[392702662,1761834424153,-329.82,0.0004,120]
[392702663,1761834424204,-1379.65,0.0004,120]
[392702664,1761834424258,-548.9,0.0004,120]
[392702665,1761834424310,-1071.21,0.0004,120]
[392702666,1761834424362,-12500.0,0.0004,120]
[392702667,1761834424413,-14999.99,0.0004,120]
[392702668,1761834424464,-22500.0,0.0004,120]
[392702669,1761834424516,-15000.0,0.0004,120]
[392702670,1761834424566,-15000.0,0.0004,120]
[392702671,1761834424617,-15000.0,0.0004,120]
[392702672,1761834424668,-22500.0,0.0004,120]
[392702673,1761834424719,-206.43,0.0004,120]
[392702674,1761834424773,-15000.0,0.0004,120]
[392702675,1761834424824,-22500.0,0.0004,120]
[392702676,1761834424876,-197.82,0.0004,120]
[392702677,1761834424929,-12500.0,0.0004,120]
[392702678,1761834424981,-10000.0,0.0004,120]
[392702679,1761834425033,-15000.0,0.000401,120]
[392702680,1761834425087,-15000.0,0.000401,120]
[392702681,1761834425138,-15000.0,0.000401,120]
[392702682,1761834425193,-15000.0,0.000401,120]
[392702683,1761834425249,-150.0,0.00040111,120]
[392702684,1761834425303,-150.0,0.00040111,120]
[392702685,1761834425356,-150.0,0.00040111,120]
[392702686,1761834425408,-150.0,0.00040111,120]
[392702687,1761834425461,-150.0,0.00040111,120]
[392702688,1761834425518,-150.0,0.00040111,120]
[392702689,1761834425576,-150.0,0.00040111,120]
[392702690,1761834425637,-150.0,0.00040111,120]
[392702691,1761834425697,-150.0,0.00040111,120]
[392702692,1761834425757,-150.0,0.00040111,120]
[392702693,1761834425814,-150.0,0.00040111,120]
[392702694,1761834425873,-22500.0,0.00040125,120]
[392702695,1761834425926,-12500.0,0.00040125,120]
[392702696,1761834425981,-22500.0,0.00040125,120]
[392702697,1761834426036,-550.36,0.00040125,120]
[392702698,1761834426091,-12500.0,0.00040125,120]
[392702699,1761834426145,-15000.0,0.000402,120]
[392702700,1761834426199,-15000.0,0.000402,120]
[392702701,1761834426254,-15000.0,0.000402,120]
[392702702,1761834426308,-15000.0,0.000402,120]
[392702703,1761834426361,-22500.0,0.0004025,120]
[392702704,1761834426412,-12500.0,0.0004025,120]
[392702705,1761834426464,-22078.08,0.0004025,120]
[392702706,1761834426514,-12500.0,0.0004025,120]
[392702707,1761834426563,-15000.0,0.000403,120]
[392702708,1761834426614,-15000.0,0.000403,120]
[392702709,1761834426664,-15000.0,0.000403,120]
[392702710,1761834426714,-15000.0,0.000403,120]
[392702711,1761834426764,-22500.0,0.00040375,120]
[392702712,1761834426816,-12500.0,0.00040375,120]
[392702713,1761834426870,-12500.0,0.00040375,120]
[392702714,1761834426922,-15000.0,0.000404,120]
[392702715,1761834426973,-15000.0,0.000404,120]
[392702716,1761834427026,-15000.0,0.000404,120]
[392702717,1761834427078,-15000.0,0.000404,120]
[392702718,1761834427130,-150.0,0.000405,120]
[392702719,1761834427184,-15000.0,0.000405,120]
[392702720,1761834427238,-22500.0,0.000405,120]
[392702721,1761834427292,-12500.0,0.000405,120]
[392702722,1761834427349,-15000.0,0.000405,120]
[392702723,1761834427404,-15000.0,0.000405,120]
[392702724,1761834427459,-15000.0,0.000405,120]
[392702725,1761834427513,-12500.0,0.000405,120]
[392702726,1761834427565,-290.24696648,0.000406,120]
[392702727,1761834427618,-220.20613177,0.000406,120]
[392702728,1761834427671,-976.61885034,0.000406,120]
[392702729,1761834427723,-170.47008197,0.000406,120]
[392702730,1761834427774,-560.58655257,0.000406,120]
[392702731,1761834427830,-4509.08464272,0.000406,120]
[392702732,1761834427883,-612.05632983,0.000406,120]
[392702733,1761834427936,-15000.0,0.000406,120]
[392702734,1761834427989,-15000.0,0.000406,120]
[392702735,1761834428040,-22500.0,0.00040625,120]
[392702736,1761834428094,-8621.84,0.00040625,120]
[392702737,1761834428148,-12500.0,0.00040625,120]
[392702738,1761834428203,-2000.0,0.000407,120]
[392702739,1761834428259,-2000.0,0.000407,120]
[392702740,1761834428314,-192.0,0.000407,120]
[392702741,1761834428376,-15000.0,0.000407,120]
[392702742,1761834428436,-15000.0,0.000407,120]
[392702743,1761834428492,-22500.0,0.0004075,120]
[392702744,1761834428543,-12500.0,0.0004075,120]
[392702745,1761834428592,-331.11385716,0.000408,60]
[392702746,1761834428644,-15000.0,0.000408,120]
[392702747,1761834428696,-15000.0,0.000408,120]
[392702748,1761834428756,-22500.0,0.00040875,120]
[392702749,1761834428816,-12500.0,0.00040875,120]
[392702750,1761834428874,-309.27,0.000409,120]
[392702751,1761834428928,-15000.0,0.000409,120]
[392702752,1761834428980,-463.88814726,0.00041,30]
[392702753,1761834429034,-543.08712146,0.00041,30]
[392702754,1761834429091,-30000.0,0.00041,120]
[392702755,1761834429375,-150.0,0.00041,120]
[392702756,1761834429425,-994.0,0.00041,30]
[392702757,1761834429473,-466.77831364,0.00041,30]
[392702758,1761834429522,-1685.01187897,0.00041,120]
[392702759,1761834429573,-22500.0,0.00041,120]
[392702760,1761834429624,-12500.0,0.00041,120]
[392702761,1761834429677,-15000.0,0.00041,120]
[392702762,1761834429728,-158.62768723,0.00041095,120]
[392702763,1761834429778,-1734.8,0.00041096,120]
[392702764,1761834429826,-331.47,0.00041096,120]
[392702765,1761834429876,-959.32,0.00041096,120]
[392702766,1761834429927,-332.02324728,0.000411,120]
[392702767,1761834429977,-428.24470188,0.000411,120]
[392702768,1761834430026,-15000.0,0.000411,120]
[392702769,1761834430076,-22500.0,0.00041125,120]
[392702770,1761834430142,-12500.0,0.00041125,120]
[392702771,1761834430195,-500.0,0.000412,120]
[392702772,1761834430249,-500.0,0.000412,120]
[392702773,1761834430297,-477.01541854,0.000412,120]
[392702774,1761834430348,-477.13749083,0.000412,30]
[392702775,1761834430400,-15000.0,0.000412,120]
[392702776,1761834430453,-22500.0,0.0004125,120]
[392702777,1761834430505,-12499.98,0.0004125,120]
[392702778,1761834430558,-15000.0,0.000413,120]
[392702779,1761834430610,-12163.08,0.00041375,120]
[392702780,1761834430661,-517.55685565,0.00041397,120]
[392702781,1761834430713,-15000.0,0.000414,120]
[392702782,1761834430764,-30000.0,0.000415,120]
[392702783,1761834430813,-150.0,0.000415,120]
[392702784,1761834430863,-15000.0,0.000415,120]
[392702785,1761834430922,-904.78,0.0004159,120]
[392702786,1761834430976,-15000.0,0.000416,120]
[392702787,1761834431027,-342.723221,0.00041601,120]
[392702788,1761834431080,-500.0,0.00041656,30]
[392702789,1761834431133,-15000.0,0.000417,120]
[392702790,1761834431185,-15000.0,0.000418,120]
[392702791,1761834431237,-290.24696648,0.000419,120]
[392702792,1761834431289,-220.20613177,0.000419,120]
[392702793,1761834431348,-976.61885034,0.000419,120]
[392702794,1761834431400,-560.58655257,0.000419,120]
[392702795,1761834431454,-4509.08464272,0.000419,120]
[392702796,1761834431507,-612.05632983,0.000419,120]
[392702797,1761834431560,-16414.6253486,0.000419,120]
[392702798,1761834431618,-16414.6253486,0.000419,120]
[392702799,1761834431672,-16414.6253486,0.000419,120]
[392702800,1761834431730,-16414.6253486,0.000419,120]
[392702801,1761834431784,-16414.6253486,0.000419,120]
[392702802,1761834431843,-16414.6253486,0.000419,120]
[392702803,1761834431902,-16414.6253486,0.000419,120]
[392702804,1761834431955,-16414.6253486,0.000419,120]
[392702805,1761834432004,-16414.6253486,0.000419,120]
[392702806,1761834432056,-16414.6253486,0.000419,120]
[392702807,1761834432110,-15000.0,0.000419,120]
[392702808,1761834432165,-370.03504169,0.00041999,120]
[392702809,1761834432217,-739.66926637,0.00042,120]
[392702810,1761834432268,-566.55,0.00042,30]
[392702811,1761834432321,-500.0,0.00042,120]
[392702812,1761834432372,-38896.54636088,0.00042,30]
[392702813,1761834432421,-11175.36760885,0.00042,30]
[392702814,1761834432470,-987.37132681,0.00042,30]
[392702815,1761834432524,-176.42501891,0.00042,30]
[392702816,1761834432579,-60914.51908495,0.00042,120]
[392702859,1761834622516,324.98,0.00013964,2]
[392702865,1761834631929,-294.0,0.00014405,2]
[392702866,1761834631939,-250.0,0.00014468,2]
[392702867,1761834631949,-294.0,0.0001453,2]
[392702868,1761834631958,-875.30545305,0.00014885,2]
[392702869,1761834631968,-160.66350305,0.00014885,2]
[392702870,1761834631977,-875.30545301,0.00014887,2]
[392702871,1761834631986,-875.30545301,0.00014888,2]
[392702872,1761834631996,-875.30545301,0.0001489,2]
[392702873,1761834632005,-875.30545301,0.00014892,2]
[392702874,1761834632015,-875.30545301,0.00014893,2]
[392702875,1761834632024,-875.30545301,0.00014895,2]
[392702876,1761834632033,-875.30545301,0.00014897,2]
[392702877,1761834632046,-1200.0,0.00014897,2]
[392702878,1761834632055,-875.30545301,0.00014898,2]
[392702879,1761834632065,-183.22195989,0.00014899,2]
[392702881,1761834632074,-875.30545301,0.000149,2]
[392702883,1761834632083,-160.66350305,0.000149,2]
[392702885,1761834632092,-300.0,0.00014944,2]
[392702886,1761834632101,-22494.2047342,0.00014945,2]
[392702888,1761834632111,-477.13749083,0.00014967,2]
[392702890,1761834632120,-510.92011121,0.00014973,2]
[392702892,1761834632129,-502.72287121,0.00014973,2]
[392702894,1761834632139,-150.0,0.00014978,2]
[392702895,1761834632148,-307.40223284,0.00014979,2]
[392702896,1761834632158,-500.0,0.00014979,2]
[392702898,1761834632166,-500.0,0.00014979,2]
[392702900,1761834632176,-387.28888275,0.00014979,2]
[392702902,1761834632185,-500.0,0.00014979,2]
[392702904,1761834632195,-500.0,0.00014979,2]
[392702905,1761834632204,-500.0,0.00014979,2]
[392702907,1761834632214,-337.72486109,0.00014979,2]
[392702908,1761834632223,-274.68975984,0.00014979,2]
[392702909,1761834632237,-312428.62006927,0.0001498,2]
[392702910,1761834632246,-500.0,0.00014985,2]
[392702911,1761834632256,-150.0,0.00014986,2]
[392702912,1761834632265,-282.1244827,0.0001499,2]
[392702913,1761834632275,-151.0,0.00014991,2]
[392702914,1761834632284,-151.0,0.00014991,2]
[392702915,1761834632294,-151.0,0.00014991,2]
[392702916,1761834632303,-151.0,0.00014991,2]
[392702917,1761834632313,-151.0,0.00014991,2]
[392702918,1761834632322,-151.0,0.00014991,2]
[392702919,1761834632331,-168.83364264,0.00014991,2]
[392702920,1761834632340,-1186.0,0.00014998,2]
[392702921,1761834632350,-905.248,0.00014998,2]
[392702922,1761834632360,-396.942,0.00014998,2]
[392702923,1761834632370,-4458.28082449,0.00014999,2]
[392702924,1761834632379,-666.0,0.00014999,2]
[392702925,1761834632389,-2569.0,0.00015,2]
[392702926,1761834632399,-44920.16845006,0.00015,2]
[392702927,1761834632411,-37131.44559867,0.00015,2]
[392702928,1761834632422,-22317.42220832,0.00015,2]
[392702929,1761834632437,-28140.41691451,0.00015,2]
[392702930,1761834632454,-1479.40325298,0.00015,2]
[392702931,1761834632465,-1876.191,0.00015,2]
[392702932,1761834632476,-3069.39129757,0.00015,2]
[392702933,1761834632488,-1894.7,0.00015,2]
[392702940,1761834637892,-820.72916712,0.00014998,2]
[392702941,1761834637904,-1622.47085,0.00014998,2]
[392702971,1761834639823,-380.11323194,0.00014998,2]
[392702972,1761834639834,-253.03252887,0.00014998,2]
[392702973,1761834639854,-1631.78922207,0.00014998,2]
[392702974,1761834639863,-2359.62844355,0.00015,2]
[392702975,1761834639874,-16419.80863721,0.00015,2]
[392702976,1761834639886,-2987.2,0.00015,2]
[392702977,1761834639898,-2699.32170041,0.00015,2]
[392702978,1761834639910,-35553.61809768,0.00015,2]
[392702979,1761834640118,-315.30276234,0.00014978,2]
[392702980,1761834640128,-46271.39678133,0.00015,2]
[392702981,1761834640139,-1507445.36765564,0.00015,2]
[392702982,1761834640154,-252.636388,0.00015,2]
[392702983,1761834640164,-294.14945435,0.00015,2]
[392703009,1761834643063,-8092.0527382,0.00015,2]
[392703010,1761834643076,-1421.78323689,0.00015,2]
[392703011,1761834643090,-1008.52999998,0.00015,2]
[392703012,1761834643103,-1698.41220503,0.00015,2]
[392703013,1761834643157,-47273.77967841,0.00015,2]
[392703024,1761834645798,-2803.30050328,0.00015,2]
[392703026,1761834645814,-450.53499995,0.00015,2]
[392703027,1761834645911,-362.65996,0.00015,2]
[392703226,1761834721912,-252.36323817,0.0002653,30]
[392703227,1761834721969,-150.0,0.0002653,30]
[392703228,1761834722022,-678.2310752,0.0002653,30]
[392703229,1761834722074,-150.0,0.0002653,30]
[392703230,1761834722133,-250.50648054,0.0002653,30]
[392703231,1761834722215,-151.0,0.00029999,31]
[392703232,1761834722267,-151.0,0.00029999,31]
[392703233,1761834722322,-151.0,0.00029999,31]
[392703234,1761834722375,-257.845898,0.00029999,31]
[392703235,1761834722431,-291.876708,0.0003,31]
[392703236,1761834722479,-151.0,0.0003,31]
[392703237,1761834722537,-151.0,0.0003,31]
[392703238,1761834722584,-171.616614,0.0003,31]
[392703239,1761834722632,-157.792133,0.0003,31]
[392703240,1761834722681,-151.0,0.0003,31]
[392703241,1761834722732,-151.0,0.0003,31]
[392703242,1761834722788,-151.0,0.0003,31]
[392703243,1761834722847,-151.0,0.0003,31]
[392703244,1761834722912,-151.0,0.0003,31]
[392703245,1761834722982,-151.0,0.0003,31]
[392703246,1761834723047,-151.0,0.0003,31]
[392703247,1761834723106,-151.0,0.0003,31]
[392703248,1761834723163,-209.479651,0.0003,31]
[392703249,1761834723220,-151.0,0.0003,31]
[392703250,1761834723276,-151.0,0.0003,30]
[392703251,1761834723331,-151.0,0.0003,31]
[392703252,1761834723382,-151.0,0.0003,31]
[392703253,1761834723435,-151.0,0.0003,31]
[392703254,1761834723487,-151.0,0.0003,31]
[392703255,1761834723539,-151.0,0.0003,30]
[392703256,1761834723609,-798.76,0.00031,30]
[392703257,1761834723665,-528.14,0.00031507,120]
[392703258,1761834723718,-151.0,0.00031507,31]
[392703259,1761834723771,-151.0,0.00031507,31]
[392703260,1761834723826,-151.0,0.00031884,31]
[392703261,1761834723880,-151.0,0.00031884,31]
[392703262,1761834723944,-161.235047,0.00031884,31]
[392703263,1761834724009,-153.0,0.00032877,30]
[392703264,1761834724063,-153.0,0.00032877,30]
[392703265,1761834724123,-153.0,0.00032877,30]
[392703266,1761834724179,-153.0,0.00032877,30]
[392703267,1761834724232,-153.0,0.00032877,30]
[392703268,1761834724283,-150.0,0.00032877,60]
[392703269,1761834724335,-178.02604083,0.00033014,60]
[392703270,1761834724385,-184.0,0.00033075,30]
[392703271,1761834724435,-1000.00000001,0.00033352,30]
[392703272,1761834724486,-1000.0,0.00033352,30]
[392703273,1761834724537,-184.0,0.00034729,30]
[392703275,1761834724595,-999.0,0.00036986,120]
[392703276,1761834724643,-798.76,0.00037,30]
[392703277,1761834725550,-151.0,0.00037075,31]
[392703278,1761834725599,-151.0,0.00037075,31]
[392703279,1761834725651,-173.554747,0.00037075,30]
[392703280,1761834725702,-156.77172,0.00037075,31]
[392703281,1761834725767,-286.00418,0.00037075,31]
[392703282,1761834725819,-151.0,0.00037075,31]
[392703283,1761834725873,-151.0,0.00037075,31]
[392703284,1761834725927,-151.0,0.00037075,30]
[392703285,1761834725981,-153.748946,0.00037075,30]
[392703286,1761834726032,-196.592572,0.00037075,31]
[392703287,1761834726081,-151.0,0.00037075,31]
[392703288,1761834726130,-151.0,0.00037089,31]
[392703289,1761834726181,-151.0,0.00037089,31]
[392703290,1761834726241,-151.0,0.00037089,31]
[392703291,1761834726298,-151.0,0.00037089,31]
[392703292,1761834726349,-151.0,0.00037089,31]
[392703293,1761834726399,-151.0,0.00037089,31]
[392703294,1761834726452,-151.0,0.00037089,31]
[392703295,1761834726507,-151.0,0.00037089,31]
[392703296,1761834726557,-151.0,0.00037089,31]
[392703297,1761834726610,-151.0,0.00037089,31]
[392703298,1761834726661,-151.0,0.00037089,31]
[392703299,1761834726717,-361.11233969,0.000372,120]
[392703300,1761834726770,-361.11233965,0.000372,120]
[392703301,1761834726820,-361.11233965,0.000372,120]
[392703302,1761834726873,-361.11233965,0.000372,120]
[392703303,1761834726926,-361.11233965,0.000372,120]
[392703304,1761834726981,-180.32647663,0.000372,120]
[392703305,1761834727032,-2337.59657728,0.000372,120]
[392703306,1761834727083,-2337.59657728,0.000383,120]
[392703307,1761834727132,-611.754,0.00038525,52]
[392703308,1761834727185,-213.9281,0.00038888,30]
[392703309,1761834727240,-2337.59657728,0.000395,120]
[392703310,1761834727296,-800.0,0.00039726,30]
[392703311,1761834727346,-214.6319604,0.00039849,97]
[392703312,1761834727399,-9999.99,0.0004,120]
[392703313,1761834727448,-33476.0,0.0004,30]
[392703314,1761834727501,-181.5601338,0.0004,60]
[392703315,1761834727553,-2337.59657728,0.000406,120]
[392703316,1761834727604,-800.0,0.00041096,40]
[392703317,1761834727656,-1000.0,0.00041726,60]
[392703318,1761834727706,-2000.0,0.00041726,60]
[392703319,1761834727759,-2337.59657728,0.000419,120]
[392703320,1761834727810,-500.0,0.00041999,120]
[392703321,1761834727859,-160.0,0.00041999,120]
[392703322,1761834727911,-500.0,0.00041999,120]
[392703323,1761834727973,-160.0,0.00041999,120]
[392703324,1761834728024,-151.0,0.00041999,120]
[392703325,1761834728076,-520.0,0.00041999,120]
[392703326,1761834728130,-500.0,0.00041999,120]
[392703327,1761834728184,-160.0,0.00041999,120]
[392703328,1761834728239,-151.0,0.00041999,120]
[392703329,1761834728293,-539.24,0.00041999,120]
[392703330,1761834728350,-500.0,0.00041999,120]
[392703331,1761834728402,-160.0,0.00041999,120]
[392703332,1761834728453,-151.0,0.00041999,120]
[392703333,1761834728505,-500.0,0.00041999,120]
[392703334,1761834728559,-559.19188,0.00041999,120]
[392703335,1761834728610,-151.0,0.00041999,120]
[392703336,1761834728662,-160.0,0.00041999,120]
[392703337,1761834728715,-151.0,0.00041999,120]
[392703338,1761834728769,-500.0,0.00041999,120]
[392703339,1761834728819,-579.88197956,0.00041999,120]
[392703340,1761834728873,-151.0,0.00041999,120]
[392703341,1761834728928,-160.0,0.00041999,120]
[392703342,1761834728993,-152.56292513,0.00041999,120]
[392703343,1761834729050,-500.0,0.00041999,120]
[392703344,1761834729104,-601.3376128,0.00041999,120]
[392703345,1761834729157,-151.0,0.00041999,120]
[392703346,1761834729211,-160.0,0.00041999,120]
[392703347,1761834729268,-151.0,0.00041999,120]
[392703348,1761834729322,-623.58710448,0.00041999,120]
[392703349,1761834729377,-500.0,0.00041999,120]